bitfinex/quotes_BTCUSD_20251208
["timestamp","ask_amount","ask_price","bid_price","bid_amount"]
[1765179037126,0.01476203,91726.0,91723.0,0.01590239]
[1765179038492,0.00386,91726.0,91723.0,0.01590239]
[1765179038698,0.00386,91726.0,91724.0,0.21804544]
[1765179038967,0.01748361,91725.0,91723.0,0.01590239]
[1765179039104,0.01748361,91725.0,91724.0,0.21804544]
[1765179039492,0.01748361,91725.0,91723.0,0.01590239]
[1765179039716,0.01748361,91725.0,91723.0,0.01090239]
[1765179040168,0.01748361,91725.0,91723.0,0.01590239]
[1765179041390,0.01748361,91725.0,91723.0,0.23394822]
[1765179041891,0.00386,91726.0,91724.0,0.21804337]
[1765179042135,0.02134361,91726.0,91724.0,0.21804337]
[1765179042330,0.02134361,91726.0,91723.0,0.01590239]
[1765179042688,0.02134361,91726.0,91723.0,0.23395003]
[1765179042891,0.02134361,91726.0,91723.0,0.22895003]
[1765179043285,0.02134361,91726.0,91725.0,0.21804306]
[1765179044335,0.02134361,91726.0,91723.0,0.01090239]
[1765179044763,0.02134361,91726.0,91723.0,0.01590239]
[1765179045094,0.02134361,91726.0,91723.0,0.22894785]
[1765179045389,0.02134361,91726.0,91725.0,0.005]
[1765179045546,0.02134361,91726.0,91723.0,0.01090239]
[1765179045918,0.02134361,91726.0,91723.0,0.01590239]
[1765179046136,0.01090274,91720.0,91716.0,0.02838683]
[1765179046338,0.2289634,91718.0,91715.0,0.01881287]
[1765179046541,0.21806445,91716.0,91715.0,0.01881287]
[1765179046742,0.21806445,91716.0,91709.0,0.0452007]
[1765179046743,0.01090369,91712.0,91709.0,0.0327407]
[1765179046947,0.21806921,91714.0,91710.0,0.01090393]
[1765179046948,0.01476346,91714.0,91710.0,0.01090393]
[1765179047146,0.01090346,91714.0,91710.0,0.01090393]
[1765179047367,0.01090286,91719.0,91716.0,0.01090322]
[1765179047548,0.01748361,91718.0,91716.0,0.01190322]
[1765179047746,0.01748361,91718.0,91717.0,0.21806208]
[1765179047945,0.02731927,91721.0,91717.0,0.21806208]
[1765179047946,0.02731927,91721.0,91719.0,0.21805732]
[1765179048287,0.01748361,91720.0,91718.0,0.01090298]
[1765179049512,0.01748361,91720.0,91718.0,0.01390298]
[1765179049702,0.00386,91719.0,91718.0,0.01390298]
[1765179050400,0.00386,91719.0,91718.0,0.003]
[1765179050636,0.00386,91719.0,91718.0,0.00312981]
[1765179050850,0.00386,91719.0,91718.0,0.00012981]
[1765179051058,0.00386,91719.0,91718.0,0.00412981]
[1765179051190,0.00772,91719.0,91718.0,0.00412981]
[1765179051590,0.00386,91719.0,91718.0,0.00412981]
[1765179056426,0.0109025,91722.0,91721.0,0.01090262]
[1765179056427,0.02731927,91722.0,91721.0,0.01090262]
[1765179056649,0.02731927,91722.0,91721.0,0.02231262]
[1765179057754,0.02831927,91722.0,91721.0,0.02531262]
[1765179057955,0.02831927,91722.0,91721.0,0.01390262]
[1765179058159,0.05352288,91722.0,91721.0,0.003]
[1765179059728,0.03603927,91722.0,91721.0,0.003]
[1765179059948,0.25408946,91722.0,91721.0,0.003]
[1765179060142,0.03603927,91722.0,91721.0,0.003]
[1765179060381,0.02831927,91722.0,91721.0,0.22105257]
[1765179060581,0.02831927,91722.0,91721.0,0.003]
[1765179061745,0.03603927,91722.0,91721.0,0.003]
[1765179061944,0.1480004,91722.0,91721.0,0.003]
[1765179062191,0.21052339,91722.0,91721.0,0.003]
[1765179062351,0.23271938,91722.0,91721.0,0.003]
[1765179062561,0.12075825,91722.0,91721.0,0.003]
[1765179062784,0.11604587,91722.0,91721.0,0.003]
[1765179063117,0.13824186,91722.0,91721.0,0.003]
[1765179063320,0.11604587,91722.0,91721.0,0.003]
[1765179063494,0.13824186,91722.0,91721.0,0.003]
[1765179063716,0.24465964,91722.0,91721.0,0.003]
[1765179063898,0.3027763,91719.0,91718.0,0.00012981]
[1765179064100,0.3066363,91719.0,91718.0,0.00012981]
[1765179064282,0.3104963,91719.0,91718.0,0.00012981]
[1765179065811,0.3124963,91719.0,91718.0,0.00012981]
[1765179066864,0.3144963,91719.0,91718.0,0.00012981]
[1765179067065,0.29230031,91719.0,91718.0,0.00012981]
[1765179067333,0.28844031,91719.0,91718.0,0.00012981]
[1765179067532,0.29230031,91719.0,91718.0,0.00012981]
[1765179068094,0.29030031,91719.0,91718.0,0.00012981]
[1765179068498,0.28830031,91719.0,91718.0,0.00212981]
[1765179068961,0.28930031,91719.0,91718.0,0.00212981]
[1765179069112,0.28544031,91719.0,91718.0,0.00212981]
[1765179069461,0.28930031,91719.0,91718.0,0.00212981]
[1765179073301,0.38473431,91719.0,91718.0,0.00212981]
[1765179073521,0.28930031,91719.0,91718.0,0.00212981]
[1765179076347,0.28930031,91719.0,91718.0,0.22018951]
[1765179076348,0.06738299,91719.0,91718.0,0.22018951]
[1765179076522,0.06352299,91719.0,91718.0,0.22018951]
[1765179077121,0.06352299,91719.0,91718.0,0.00212981]
[1765179078985,0.06352299,91719.0,91718.0,0.22018951]
[1765179080197,0.06352299,91719.0,91718.0,0.00212981]
[1765179084658,0.06352299,91719.0,91718.0,0.22018951]
[1765179084866,0.001,91719.0,91718.0,0.23797238]
[1765179085088,0.001,91719.0,91718.0,0.26171238]
[1765179086372,0.001,91719.0,91718.0,0.28385343]
[1765179087165,0.0218,91722.0,91721.0,0.24019362]
[1765179087364,0.0218,91722.0,91721.0,0.25797649]
[1765179087563,0.0218,91722.0,91721.0,0.28171649]
[1765179088352,0.0218,91722.0,91721.0,0.28271649]
[1765179089553,0.0218,91722.0,91721.0,0.29991649]
[1765179089874,0.0218,91722.0,91721.0,0.30491649]
[1765179090699,0.0218,91722.0,91721.0,0.28771649]
[1765179090867,0.0218,91722.0,91721.0,0.30491649]
[1765179091699,0.0218,91722.0,91721.0,0.25903544]
[1765179091904,0.0218,91722.0,91721.0,0.04098287]
[1765179092104,0.0218,91722.0,91721.0,0.06472287]
[1765179094444,0.0218,91722.0,91721.0,0.02378287]
[1765179094797,0.0218,91722.0,91721.0,0.04098287]
[1765179095154,0.24642816,91726.0,91721.0,0.02378287]
[1765179095352,0.24642816,91726.0,91721.0,0.006]
[1765179095353,0.03117927,91722.0,91721.0,0.006]
[1765179095553,0.03117927,91722.0,91718.0,0.00012981]
[1765179095554,0.21805732,91719.0,91718.0,0.00012981]
[1765179095894,0.28444031,91719.0,91718.0,0.00012981]
[1765179096097,0.28830031,91719.0,91718.0,0.00012981]
[1765179097494,0.28930031,91719.0,91718.0,0.00012981]
[1765179108023,0.29316031,91719.0,91718.0,0.00012981]
[1765179109231,0.3153563,91719.0,91718.0,0.00012981]
[1765179109469,0.3153563,91719.0,91694.0,0.01669981]
[1765179109470,0.2181144,91695.0,91694.0,0.01669981]
[1765179109629,0.2181144,91695.0,91690.0,0.01090631]
[1765179109630,0.22197527,91695.0,91690.0,0.01090631]
[1765179109839,0.22197527,91695.0,91690.0,0.0172]
[1765179109840,0.21811878,91694.0,91690.0,0.0172]
[1765179110016,0.01476572,91695.0,91689.0,0.24141318]
[1765179110223,0.01476572,91695.0,91692.0,0.01090607]
[1765179111237,0.01090583,91694.0,91691.0,0.02810619]
[1765179111573,0.23288192,91695.0,91694.0,0.004]
[1765179111574,0.00386,91695.0,91694.0,0.004]
[1765179111772,0.00386,91695.0,91693.0,0.21811741]
[1765179112950,0.00386,91695.0,91692.0,0.01090607]
[1765179113323,0.01476572,91695.0,91691.0,0.03210619]
[1765179113691,0.00386,91695.0,91692.0,0.2290276]
[1765179114072,0.01476572,91695.0,91692.0,0.01090607]
[1765179114411,0.01476572,91695.0,91693.0,0.001]
[1765179114648,0.23288246,91695.0,91693.0,0.005]
[1765179114854,0.01090643,91689.0,91685.0,0.0109069]
[1765179115276,0.01090655,91688.0,91685.0,0.0109069]
[1765179115492,0.01090655,91688.0,91685.0,0.22904509]
[1765179115765,0.01090655,91688.0,91685.0,0.0281069]
[1765179115946,0.01090643,91689.0,91686.0,0.01090679]
[1765179116266,0.01090619,91691.0,91687.0,0.01090667]
[1765179116924,0.22902921,91692.0,91688.0,0.01090655]
[1765179117545,0.21812629,91690.0,91687.0,0.01090667]
[1765179117744,0.2290326,91690.0,91686.0,0.01090679]
[1765179118378,0.25635634,91689.0,91688.0,0.001]
[1765179118729,0.25635634,91689.0,91680.0,0.2181491]
[1765179118730,0.2290422,91687.0,91681.0,0.02328738]
[1765179118901,0.2290422,91687.0,91683.0,0.01090714]
[1765179118902,0.01090679,91686.0,91683.0,0.01090714]
[1765179119147,0.01090679,91686.0,91680.0,0.2181491]
[1765179119148,0.01090679,91686.0,91680.0,0.0172]
[1765179119149,0.01090738,91681.0,91680.0,0.0172]
[1765179119321,0.01090738,91681.0,91678.0,0.01238]
[1765179119322,0.01090738,91681.0,91679.0,0.0172]
[1765179119704,0.01090738,91681.0,91675.0,0.01090809]
[1765179119705,0.01090679,91686.0,91666.0,0.01090917]
[1765179119706,0.01090845,91672.0,91666.0,0.01090917]
[1765179119903,0.06252299,91679.0,91666.0,0.01090917]
[1765179119904,0.01090809,91675.0,91669.0,0.01090881]
[1765179120103,0.00386,91685.0,91678.0,0.01238]
[1765179120104,0.21815228,91680.0,91678.0,0.01238]
[1765179120435,0.01090738,91681.0,91674.0,0.01090821]
[1765179120436,0.06252299,91679.0,91674.0,0.01090821]
[1765179120641,0.01090738,91681.0,91676.0,0.01090798]
[1765179120642,0.07343049,91680.0,91676.0,0.01090798]
[1765179120840,0.07343049,91680.0,91677.0,0.01090786]
[1765179121054,0.0109069,91685.0,91679.0,0.01577]
[1765179121338,0.22904702,91685.0,91684.0,0.01238]
[1765179121567,0.0109069,91685.0,91684.0,0.01238]
[1765179122364,0.001,91685.0,91682.0,0.01090726]
[1765179122886,0.02731927,91684.0,91681.0,0.02301738]
[1765179123269,0.02731927,91684.0,91682.0,0.21814532]
[1765179123466,0.02731927,91684.0,91682.0,0.24248532]
[1765179124200,0.06252299,91689.0,91687.0,0.01090667]
[1765179124406,0.04208558,91690.0,91687.0,0.01090667]
[1765179124407,0.03117927,91690.0,91688.0,0.01211]
[1765179125371,0.0109056,91696.0,91690.0,0.01090631]
[1765179125567,0.21810929,91698.0,91690.0,0.01090631]
[1765179125568,0.21810929,91698.0,91695.0,0.01090572]
[1765179125569,0.01090536,91698.0,91695.0,0.01090572]
[1765179125838,0.01476488,91702.0,91695.0,0.01090572]
[1765179125839,0.23286458,91702.0,91695.0,0.01090572]
[1765179126038,0.23286458,91702.0,91699.0,0.01090524]
[1765179126039,0.01476488,91702.0,91699.0,0.01090524]
[1765179126282,0.21808504,91708.0,91699.0,0.01090524]
[1765179126283,0.00386,91709.0,91705.0,0.01090453]
[1765179126450,0.02731927,91708.0,91707.0,0.02301429]
[1765179127042,0.06252299,91713.0,91709.0,0.01090405]
[1765179127271,0.06252299,91713.0,91712.0,0.21807397]
[1765179127470,0.00386,91714.0,91711.0,0.01090381]
[1765179127471,0.01476346,91714.0,91711.0,0.01090381]
[1765179127674,0.01090357,91713.0,91709.0,0.01090405]
[1765179127879,0.00386,91714.0,91711.0,0.01090381]
[1765179128084,0.00386,91714.0,91711.0,0.22897786]
[1765179128282,0.003,91713.0,91711.0,0.22897786]
[1765179128716,0.003,91713.0,91709.0,0.01090405]
[1765179128893,0.003,91713.0,91710.0,0.22898265]
[1765179129048,0.003,91713.0,91711.0,0.21807401]
[1765179129672,0.00386,91714.0,91711.0,0.22909502]
[1765179129881,0.002,91713.0,91711.0,0.22909502]
[1765179130259,0.00386,91714.0,91713.0,0.21807159]
[1765179131348,0.00386,91714.0,91711.0,0.22909502]
[1765179131579,0.00586,91714.0,91713.0,0.21807159]
[1765179131791,0.00586,91714.0,91713.0,0.21968446]
[1765179132005,0.007,91714.0,91713.0,0.25822446]
[1765179132217,0.007,91714.0,91713.0,0.28036551]
[1765179132432,0.007,91714.0,91713.0,0.29756551]
[1765179132642,0.005,91714.0,91713.0,0.27542446]
[1765179132858,0.007,91714.0,91713.0,0.27542446]
[1765179133080,0.002,91714.0,91713.0,0.27542446]
[1765179133286,0.002,91714.0,91713.0,0.27742446]
[1765179133509,0.01090286,91719.0,91715.0,0.01090334]
[1765179133510,0.01090298,91718.0,91715.0,0.01090334]
[1765179133834,0.01090286,91719.0,91715.0,0.02268334]
[1765179134475,0.01090286,91719.0,91716.0,0.01090322]
[1765179134879,0.22896268,91718.0,91715.0,0.02468334]
[1765179135250,0.2453764,91720.0,91717.0,0.0109031]
[1765179135251,0.02731927,91720.0,91717.0,0.0109031]
[1765179135454,0.01476191,91727.0,91722.0,0.22895224]
[1765179135895,0.00386,91727.0,91724.0,0.01090227]
[1765179136108,0.00386,91727.0,91724.0,0.22894542]
[1765179136965,0.00386,91727.0,91726.0,0.21804068]
[1765179137186,0.00486,91727.0,91726.0,0.21804068]
[1765179137338,0.00486,91727.0,91724.0,0.01090227]
[1765179137539,0.00586,91727.0,91724.0,0.01090227]
[1765179137741,0.0109025,91722.0,91716.0,0.21806267]
[1765179137940,0.01090262,91721.0,91716.0,0.21806267]
[1765179138182,0.02731927,91722.0,91719.0,0.01090286]
[1765179138382,0.02731927,91722.0,91719.0,0.22895787]
[1765179138559,0.02731927,91722.0,91721.0,0.21805257]
[1765179138748,0.00486,91727.0,91724.0,0.01090227]
[1765179138948,0.00486,91727.0,91724.0,0.22894672]
[1765179139170,0.00586,91727.0,91721.0,0.01090262]
[1765179139377,0.01090262,91721.0,91716.0,0.01090322]
[1765179139573,0.01090262,91721.0,91710.0,0.01090393]
[1765179139574,0.01090334,91715.0,91710.0,0.01090393]
[1765179139759,0.01090298,91718.0,91713.0,0.01090357]
[1765179140124,0.01090262,91721.0,91713.0,0.01090357]
[1765179140125,0.01090262,91721.0,91717.0,0.2562249]
[1765179140311,0.01090262,91721.0,91719.0,0.001]
[1765179140518,0.01090227,91724.0,91722.0,0.0109025]
[1765179140519,0.06252299,91724.0,91722.0,0.0109025]
[1765179140723,0.06252299,91724.0,91721.0,0.01090262]
[1765179140921,0.28056582,91726.0,91721.0,0.22895307]
[1765179141119,0.01090239,91723.0,91720.0,0.01090274]
[1765179142283,0.06252299,91726.0,91723.0,0.01090239]
[1765179142510,0.07342502,91726.0,91723.0,0.01090239]
[1765179142712,0.01090227,91724.0,91721.0,0.01090262]
[1765179142925,0.02731927,91722.0,91721.0,0.01090262]
[1765179143126,0.02731927,91722.0,91717.0,0.0226831]
[1765179143341,0.01090274,91720.0,91717.0,0.01178]
[1765179143660,0.21805732,91719.0,91717.0,0.01178]
[1765179144496,0.01090334,91715.0,91712.0,0.02898]
[1765179144855,0.21806921,91714.0,91712.0,0.01178]
[1765179145074,0.01090227,91724.0,91713.0,0.01090357]
[1765179145273,0.0109031,91717.0,91712.0,0.25795583]
[1765179145472,0.01090322,91716.0,91712.0,0.25795583]
[1765179145689,0.02731927,91722.0,91716.0,0.01090322]
[1765179145892,0.21805257,91721.0,91716.0,0.22896738]
[1765179146450,0.01090274,91720.0,91716.0,0.22896738]
[1765179146894,0.04122177,91722.0,91719.0,0.01090286]
[1765179147093,0.03922177,91722.0,91719.0,0.01090286]
[1765179147293,0.002,91721.0,91719.0,0.01090286]
[1765179147495,0.23095529,91721.0,91717.0,0.21806003]
[1765179147746,0.22895529,91721.0,91717.0,0.21806003]
[1765179148114,0.02931927,91722.0,91717.0,0.22896313]
[1765179148318,0.001,91720.0,91719.0,0.22896018]
[1765179148659,0.04022177,91722.0,91719.0,0.22896018]
[1765179149014,0.02731927,91722.0,91720.0,0.21805339]
[1765179149243,0.03117927,91736.0,91724.0,0.01090227]
[1765179149244,0.01090155,91730.0,91724.0,0.01090227]
[1765179149472,0.01090179,91728.0,91725.0,0.01090215]
[1765179149677,0.01090167,91729.0,91726.0,0.01090203]
[1765179150274,0.01090155,91730.0,91727.0,0.01090191]
[1765179150519,0.01090167,91729.0,91725.0,0.01090215]
[1765179150919,0.01090167,91729.0,91726.0,0.002]
[1765179150920,0.01090179,91728.0,91726.0,0.002]
[1765179151151,0.2180383,91727.0,91726.0,0.002]
[1765179151795,0.01090179,91728.0,91726.0,0.002]
[1765179152000,0.22893973,91728.0,91726.0,0.002]
[1765179152201,0.01090191,91727.0,91726.0,0.001]
[1765179153084,0.01090191,91727.0,91726.0,0.003]
[1765179153293,0.01090191,91727.0,91726.0,0.001]
[1765179153667,0.01090191,91727.0,91726.0,0.004]
[1765179154075,0.00386,91734.0,91732.0,0.21802642]
[1765179154283,0.00386,91734.0,91729.0,0.01090167]
[1765179154284,0.0109012,91733.0,91729.0,0.01090167]
[1765179154453,0.0109012,91733.0,91730.0,0.01178]
[1765179155022,0.22892708,91733.0,91730.0,0.01178]
[1765179155154,0.2180288,91731.0,91730.0,0.01178]
[1765179155356,0.22892708,91733.0,91726.0,0.003]
[1765179155357,0.2180378,91728.0,91726.0,0.003]
[1765179155560,0.2180378,91728.0,91715.0,0.02268334]
[1765179155561,0.01090286,91719.0,91715.0,0.02268334]
[1765179155876,0.01090274,91720.0,91717.0,0.0172]
[1765179156079,0.22895483,91722.0,91718.0,0.01090298]
[1765179156080,0.0109025,91722.0,91718.0,0.01090298]
[1765179156447,0.01090215,91725.0,91720.0,0.01090274]
[1765179157200,0.01090239,91723.0,91719.0,0.01090286]
[1765179157572,0.01090239,91723.0,91718.0,0.22896086]
[1765179157573,0.01090286,91719.0,91715.0,0.22984567]
[1765179157775,0.21804306,91725.0,91716.0,0.0172]
[1765179158091,0.01090239,91723.0,91719.0,0.01090286]
[1765179158290,0.47253856,91730.0,91719.0,0.01090286]
[1765179158291,0.21804455,91725.0,91720.0,0.22895575]
[1765179158474,0.47253856,91730.0,91724.0,0.22894574]
[1765179158475,0.25450735,91730.0,91724.0,0.22894574]
[1765179158674,0.01090191,91727.0,91724.0,0.01090227]
[1765179159015,0.01090203,91726.0,91722.0,0.0226825]
[1765179159216,0.01090227,91724.0,91719.0,0.01090286]
[1765179159546,0.01090227,91724.0,91717.0,0.0109031]
[1765179159547,0.01090298,91718.0,91716.0,0.0172]
[1765179159668,0.01090262,91721.0,91716.0,0.0172]
[1765179159865,0.02731927,91722.0,91719.0,0.22895787]
[1765179160370,0.01090215,91725.0,91721.0,0.01090262]
[1765179161252,0.22894771,91724.0,91721.0,0.01090262]
[1765179161451,0.01090239,91723.0,91719.0,0.001]
[1765179161649,0.01090215,91725.0,91722.0,0.0109025]
[1765179161846,0.01748361,91725.0,91721.0,0.01090262]
[1765179162049,0.01090167,91729.0,91720.0,0.22895768]
[1765179162050,0.00386,91734.0,91728.0,0.01090179]
[1765179162387,0.00386,91734.0,91731.0,0.01090144]
[1765179162965,0.00386,91734.0,91731.0,0.22892836]
[1765179163199,0.00386,91734.0,91732.0,0.21802459]
[1765179163401,0.02731927,91733.0,91731.0,0.01090144]
[1765179163668,0.02731927,91733.0,91729.0,0.0113]
[1765179163669,0.27372972,91733.0,91729.0,0.0113]
[1765179163876,0.03822047,91733.0,91730.0,0.01090155]
[1765179164194,0.02731927,91733.0,91731.0,0.2180288]
[1765179166595,0.02731927,91740.0,91737.0,0.01090072]
[1765179166806,0.02731927,91740.0,91737.0,0.22891323]
[1765179166997,0.02731927,91740.0,91736.0,0.0113]
[1765179166998,0.03821964,91740.0,91736.0,0.0113]
[1765179167197,0.01090048,91739.0,91736.0,0.0113]
[1765179167422,0.22891212,91739.0,91736.0,0.0113]
[1765179167600,0.01090048,91739.0,91736.0,0.0113]
[1765179167803,0.01090048,91739.0,91736.0,0.02220084]
[1765179167999,0.03921964,91740.0,91737.0,0.01090072]
[1765179168229,0.03821964,91740.0,91737.0,0.01090072]
[1765179168432,0.04021964,91740.0,91737.0,0.01090072]
[1765179168812,0.03821964,91740.0,91737.0,0.01090072]
[1765179169013,0.01090048,91739.0,91736.0,0.0113]
[1765179169783,0.001,91739.0,91736.0,0.24021717]
[1765179170143,0.003,91739.0,91736.0,0.24021717]
[1765179171329,0.01390048,91739.0,91736.0,0.02220084]
[1765179171799,0.003,91739.0,91736.0,0.02220084]
[1765179172585,0.003,91739.0,91736.0,0.24021609]
[1765179172782,0.003,91739.0,91736.0,0.0113]
[1765179173169,0.003,91739.0,91737.0,0.21801454]
[1765179173370,0.01390048,91739.0,91735.0,0.01090096]
[1765179173580,0.003,91739.0,91736.0,0.21801464]
[1765179173985,0.002,91739.0,91736.0,0.21801464]
[1765179174337,0.003,91739.0,91737.0,0.21801265]
[1765179174864,0.001,91739.0,91737.0,0.21801265]
[1765179175012,0.003,91739.0,91736.0,0.01090084]
[1765179175344,0.003,91739.0,91737.0,0.21801454]
[1765179175694,0.002,91739.0,91737.0,0.21801454]
[1765179176084,0.003,91739.0,91737.0,0.21801454]
[1765179176486,0.002,91739.0,91737.0,0.21801454]
[1765179176882,0.003,91739.0,91737.0,0.21801454]
[1765179177334,0.003,91739.0,91737.0,0.24208454]
[1765179177962,0.003,91739.0,91738.0,0.0407]
[1765179178136,0.003,91739.0,91738.0,0.04231287]
[1765179178708,0.02731927,91745.0,91742.0,0.01090013]
[1765179178911,0.02731927,91745.0,91743.0,0.21800028]
[1765179179540,0.02731927,91745.0,91738.0,0.21962265]
[1765179179541,0.0322435,91744.0,91738.0,0.00261287]
[1765179179763,0.0322435,91744.0,91741.0,0.01090025]
[1765179180308,0.0322435,91744.0,91738.0,0.23152431]
[1765179180309,0.21800978,91739.0,91738.0,0.001]
[1765179180510,0.22186978,91739.0,91738.0,0.001]
[1765179180722,0.21800978,91739.0,91738.0,0.001]
[1765179180926,0.21800978,91739.0,91730.0,0.02221155]
[1765179180927,0.0109012,91733.0,91730.0,0.02221155]
[1765179181123,0.0109012,91733.0,91730.0,0.01131]
[1765179181741,0.21802167,91734.0,91730.0,0.02221155]
[1765179181902,0.01090096,91735.0,91730.0,0.24024265]
[1765179182105,0.01090084,91736.0,91733.0,0.0109012]
[1765179182308,0.21803593,91728.0,91723.0,0.01090239]
[1765179182605,0.21803593,91728.0,91725.0,0.01090215]
[1765179182606,0.01090179,91728.0,91725.0,0.01090215]
[1765179182959,0.22893272,91730.0,91725.0,0.01090215]
[1765179182960,0.22893272,91730.0,91727.0,0.01090191]
[1765179183172,0.22893272,91730.0,91723.0,0.01090239]
[1765179183173,0.00386,91726.0,91721.0,0.0113]
[1765179183402,0.00386,91726.0,91698.0,0.01131]
[1765179183403,0.22897876,91712.0,91709.0,0.01131]
[1765179183600,0.01090393,91710.0,91709.0,0.01131]
[1765179183811,0.22898515,91709.0,91706.0,0.01131]
[1765179183955,0.22898515,91709.0,91698.0,0.01131]
[1765179183957,0.2181025,91700.0,91698.0,0.01131]
[1765179184163,0.010905,91701.0,91698.0,0.01131]
[1765179184366,0.01090464,91704.0,91699.0,0.01090524]
[1765179184644,0.01090441,91706.0,91702.0,0.01090488]
[1765179184992,0.24538968,91714.0,91699.0,0.01090524]
[1765179184993,0.01090357,91713.0,91708.0,0.01090417]
[1765179185455,0.03822273,91714.0,91710.0,0.01090393]
[1765179186411,0.03822273,91714.0,91711.0,0.01090381]
[1765179187180,0.01090369,91712.0,91709.0,0.22898278]
[1765179187389,0.03822273,91714.0,91710.0,0.01090393]
[1765179187619,0.21804306,91725.0,91719.0,0.21805499]
[1765179187734,0.01090215,91725.0,91721.0,0.01090262]
[1765179187938,0.22190183,91726.0,91724.0,0.01131]
[1765179188139,0.22190183,91726.0,91716.0,0.22896744]
[1765179188140,0.01090274,91720.0,91716.0,0.02810322]
[1765179188439,0.01090274,91720.0,91714.0,0.22897068]
[1765179188440,0.01090286,91719.0,91714.0,0.22897068]
[1765179188640,0.01090286,91719.0,91711.0,0.01090381]
[1765179188641,0.01090346,91714.0,91711.0,0.01090381]
[1765179188846,0.01090357,91713.0,91710.0,0.0297168]
[1765179189273,0.01090346,91714.0,91711.0,0.22898015]
[1765179189670,0.01090346,91714.0,91710.0,0.0125168]
[1765179189895,0.01090346,91714.0,91710.0,0.0297168]
[1765179190069,0.01090357,91713.0,91710.0,0.0297168]
[1765179190281,0.01090346,91714.0,91710.0,0.0125168]
[1765179190913,0.02731927,91715.0,91712.0,0.01090369]
[1765179191319,0.02731927,91715.0,91713.0,0.21807159]
[1765179191581,0.02731927,91715.0,91712.0,0.22897555]
[1765179191894,0.02731927,91715.0,91705.0,0.01131]
[1765179191895,0.01090381,91711.0,91705.0,0.01131]
[1765179192081,0.21808586,91707.0,91705.0,0.01131]
[1765179192266,0.21808586,91707.0,91700.0,0.01090512]
[1765179192267,0.01090429,91707.0,91703.0,0.0172]
[1765179192485,0.01090429,91707.0,91704.0,0.22899763]
[1765179192688,0.01090381,91711.0,91708.0,0.01090417]
[1765179192891,0.3402,91741.0,91716.0,0.01090322]
[1765179192892,0.34992178,91720.0,91716.0,0.01090322]
[1765179193077,0.21805494,91720.0,91719.0,0.01521]
[1765179193442,0.01090191,91727.0,91719.0,0.02611286]
[1765179193638,0.01090227,91724.0,91721.0,0.22895449]
[1765179193840,0.00386,91726.0,91723.0,0.01090239]
[1765179194065,0.22894355,91726.0,91723.0,0.01521]
[1765179194649,0.01090191,91727.0,91723.0,0.24415933]
[1765179194847,0.001,91724.0,91723.0,0.02611239]
[1765179195052,0.001,91724.0,91723.0,0.01090239]
[1765179195477,0.003,91724.0,91723.0,0.01090239]
[1765179196333,0.003,91724.0,91722.0,0.0109025]
[1765179196758,0.002,91726.0,91725.0,0.02214105]
[1765179196930,0.002,91726.0,91725.0,0.03735105]
[1765179197182,0.02731927,91730.0,91727.0,0.01090191]
[1765179197723,0.02731927,91736.0,91731.0,0.01090144]
[1765179198336,0.02731927,91736.0,91729.0,0.01243]
[1765179198337,0.01090096,91735.0,91729.0,0.01243]
[1765179198555,0.01090215,91725.0,91722.0,0.02438]
[1765179198754,0.01090155,91730.0,91727.0,0.01090191]
[1765179199155,0.34992036,91732.0,91728.0,0.01090179]
[1765179199482,0.01090132,91732.0,91729.0,0.21803355]
[1765179199637,0.0109012,91733.0,91730.0,0.01090155]
[1765179199833,0.0109012,91733.0,91730.0,0.01100819]
[1765179200880,0.21802358,91734.0,91730.0,0.01100819]
[1765179201039,0.03821999,91737.0,91733.0,0.01521]
[1765179201224,0.01090084,91736.0,91733.0,0.0109012]
[1765179201429,0.01476108,91734.0,91730.0,0.01100819]
[1765179201927,0.01476108,91734.0,91730.0,0.01200819]
[1765179202132,0.01090096,91735.0,91731.0,0.2289286]
[1765179202545,0.03821999,91737.0,91732.0,0.22892572]
[1765179202785,0.03821999,91737.0,91733.0,0.21802191]
[1765179203366,0.02731927,91737.0,91734.0,0.22892093]
[1765179203770,0.02831927,91737.0,91734.0,0.01090108]
[1765179204183,0.04480288,91737.0,91734.0,0.01090108]
[1765179204383,0.04680288,91737.0,91734.0,0.01090108]
[1765179205444,0.04680288,91737.0,91735.0,0.21801929]
[1765179205631,0.02931927,91737.0,91735.0,0.21801929]
[1765179205833,0.002,91737.0,91736.0,0.03959]
[1765179206236,0.001,91737.0,91736.0,0.03959]
[1765179206436,0.02731927,91743.0,91740.0,0.01090037]
[1765179206858,0.02731927,91743.0,91741.0,0.21800315]
[1765179207175,0.00386,91748.0,91746.0,0.21799153]
[1765179207581,0.00386,91748.0,91745.0,0.22889481]
[1765179207800,0.02731927,91746.0,91745.0,0.01089977]
[1765179208085,0.02731927,91746.0,91745.0,0.23042553]
[1765179208278,0.00386,91755.0,91745.0,0.23042553]
[1765179208279,0.23273157,91755.0,91750.0,0.01089918]
[1765179208486,0.22887487,91754.0,91750.0,0.01521]
[1765179208710,0.0108987,91754.0,91751.0,0.01089906]
[1765179209117,0.01089882,91753.0,91749.0,0.2288851]
[1765179209350,0.01089894,91752.0,91749.0,0.2288851]
[1765179209795,0.01089894,91752.0,91749.0,0.0108993]
[1765179209999,0.22888033,91751.0,91747.0,0.03527953]
[1765179210304,0.01089918,91750.0,91747.0,0.02438]
[1765179210453,0.01089918,91750.0,91739.0,0.21800773]
[1765179210454,0.01089942,91748.0,91744.0,0.01243]
[1765179210655,0.21800265,91742.0,91737.0,0.02333072]
[1765179210879,0.04207904,91745.0,91739.0,0.02810048]
[1765179211051,0.01090001,91743.0,91739.0,0.02810048]
[1765179211446,0.01089989,91744.0,91740.0,0.01090037]
[1765179211774,0.01089989,91744.0,91741.0,0.01090025]
[1765179211974,0.02731927,91745.0,91742.0,0.22890278]
[1765179213414,0.02831927,91745.0,91742.0,0.01090013]
[1765179213772,0.02931927,91745.0,91742.0,0.01090013]
[1765179214428,0.02931927,91745.0,91741.0,0.01090025]
[1765179214429,0.01089989,91744.0,91741.0,0.01090025]
[1765179215328,0.02931927,91745.0,91741.0,0.01090025]
[1765179215563,0.21800683,91741.0,91737.0,0.02963]
[1765179215781,0.01090037,91740.0,91737.0,0.25854465]
[1765179216708,0.01090037,91740.0,91737.0,0.02333072]
[1765179216954,0.01090072,91737.0,91733.0,0.0109012]
[1765179217155,0.01090072,91737.0,91731.0,0.01090144]
[1765179217156,0.01090084,91736.0,91731.0,0.01090144]
[1765179217290,0.01476072,91737.0,91733.0,0.0109012]
[1765179217491,0.01090072,91737.0,91733.0,0.0109012]
[1765179218227,0.01090084,91736.0,91733.0,0.0109012]
[1765179218980,0.21802642,91732.0,91730.0,0.00010664]
[1765179219126,0.02731927,91731.0,91730.0,0.00010664]
[1765179220509,0.02731927,91731.0,91730.0,0.00210664]